bitfinex/quotes_ETHUSD_20240730
["timestamp","ask_amount","ask_price","bid_price","bid_amount"]
[1722373978338,0.03988109,3278.4,3278.3,0.0972984]
[1722373978529,2.28180915,3278.4,3278.3,0.0972984]
[1722373978826,0.03988732,3278.4,3278.3,0.0972984]
[1722373978986,5.64757796,3278.6,3278.3,0.0972984]
[1722373979187,0.03988732,3278.4,3278.3,0.0972984]
[1722373979394,5.64757796,3278.6,3278.3,0.0972984]
[1722373979623,0.03988732,3278.4,3278.3,0.0972984]
[1722373979824,2.24215479,3278.4,3278.3,0.0972984]
[1722373979989,2.28204211,3278.4,3278.3,0.0972984]
[1722373980205,0.03988732,3278.4,3278.3,0.0972984]
[1722373980617,2.28204211,3278.4,3278.3,0.0972984]
[1722373980805,0.03988732,3278.4,3278.3,0.0972984]
[1722373981205,1.96178155,3278.4,3278.3,2.5777984]
[1722373981434,1.96178155,3278.4,3278.3,2.84167861]
[1722373981676,0.03988732,3278.4,3278.3,2.84167861]
[1722373982037,1.92162809,3278.5,3278.3,2.84167861]
[1722373982237,9.7433919,3279.1,3278.3,2.84167861]
[1722373982238,1.96137461,3278.4,3278.3,2.84167861]
[1722373982421,0.03974652,3278.4,3278.3,2.84167861]
[1722373983728,0.03974652,3278.4,3278.3,9.00339976]
[1722373983927,1.64087831,3278.4,3278.3,9.00339976]
[1722373984255,1.64030981,3278.4,3278.3,9.00339976]
[1722373984966,1.64030981,3278.4,3278.3,5.95303976]
[1722373985124,0.03917802,3278.4,3278.3,5.95303976]
[1722373985316,1.63997944,3278.4,3278.3,5.95303976]
[1722373985666,0.4521957,3279.4,3278.5,2.4805]
[1722373985828,1.92096247,3278.7,3278.6,0.06099404]
[1722373986154,1.92096247,3278.8,3278.5,3.13679094]
[1722373986364,1.92096247,3278.8,3278.6,0.61870509]
[1722373986712,1.92096247,3278.8,3278.6,3.66877509]
[1722373986907,1.92096247,3278.9,3278.7,2.54149187]
[1722373987150,1.92096247,3278.8,3278.7,2.4805]
[1722373987329,3.0995221,3279.4,3278.7,2.4805]
[1722373987330,1.92096247,3278.9,3278.7,2.4805]
[1722373987628,1.92096247,3278.9,3278.7,2.72855]
[1722373988425,1.91991751,3278.9,3278.7,2.72855]
[1722373988855,1.91991751,3279.0,3278.7,2.72855]
[1722373989158,1.91991751,3279.0,3278.7,2.4805]
[1722373991525,1.91933121,3279.0,3278.7,2.4805]
[1722373992433,2.23921975,3279.3,3278.7,2.4805]
[1722373992634,5.23921975,3279.3,3278.7,2.4805]
[1722373993138,3.0,3279.3,3278.7,2.4805]
[1722373993499,0.4521957,3279.4,3278.7,2.4805]
[1722373993500,2.23930729,3279.1,3278.7,2.4805]
[1722373993947,1.91936853,3278.8,3278.7,2.4805]
[1722373994477,2.23930729,3278.8,3278.3,0.2972984]
[1722373994690,1.919498,3278.5,3278.3,0.2972984]
[1722373994833,1.919498,3278.4,3278.3,0.2972984]
[1722373995856,1.919498,3278.4,3278.3,0.4972984]
[1722373996376,3.0,3278.9,3278.3,0.4972984]
[1722373996576,1.91947948,3278.5,3278.3,0.4972984]
[1722373997861,1.91947948,3278.4,3278.3,0.4972984]
[1722373998057,1.91947948,3278.5,3278.3,0.4972984]
[1722373998259,1.91947948,3278.6,3278.3,0.4972984]
[1722373998761,1.91947948,3278.5,3278.3,0.4972984]
[1722373998970,1.91947948,3278.6,3278.4,2.4101]
[1722373999345,1.91947948,3278.5,3278.4,2.4101]
[1722373999551,3.0,3278.8,3278.4,2.4101]
[1722373999793,1.91946964,3278.5,3278.4,2.4101]
[1722374000009,2.23938125,3278.8,3278.4,2.4101]
[1722374000010,3.0,3279.3,3278.4,2.4101]
[1722374000151,1.91947456,3278.6,3278.4,2.4101]
[1722374000644,1.91947456,3278.5,3278.4,2.4101]
[1722374000848,0.03957206,3278.5,3278.4,2.4101]
[1722374001050,1.95904662,3278.5,3278.4,2.4101]
[1722374001574,0.03957206,3278.5,3278.4,2.72083984]
[1722374002996,0.03957206,3278.5,3278.4,5.77109984]
[1722374003157,0.03957206,3278.5,3278.4,2.78183685]
[1722374003356,0.03957206,3278.5,3278.4,2.72083984]
[1722374003590,0.03957206,3278.5,3278.4,6.90609672]
[1722374003754,1.92016345,3278.8,3278.4,6.90609672]
[1722374004103,0.0395255,3278.7,3278.6,2.4244]
[1722374004312,0.0395255,3278.7,3278.6,2.48539514]
[1722374004689,1.92016345,3278.8,3278.6,5.53542514]
[1722374004885,1.92016345,3279.0,3278.7,0.96509177]
[1722374005116,1.92016345,3278.9,3278.7,1.02608429]
[1722374005418,1.92016345,3278.9,3278.7,1.0260845]
[1722374005574,1.92016345,3279.0,3278.8,0.65004945]
[1722374006212,0.4521957,3279.4,3278.8,0.65004945]
[1722374006213,1.92022316,3279.1,3278.8,3.69992945]
[1722374006419,1.92022316,3279.1,3278.9,2.316]
[1722374008599,1.92022316,3279.2,3278.9,2.316]
[1722374008805,0.4521957,3279.4,3279.0,0.30270395]
[1722374008806,1.92022316,3279.3,3279.0,0.30270395]
[1722374008978,1.92022316,3279.3,3279.1,0.06098812]
[1722374009423,0.4521957,3279.4,3279.1,0.06098812]
[1722374009633,1.91922562,3279.4,3279.2,3.39079921]
[1722374009929,1.91922562,3279.5,3279.3,2.3827]
[1722374010074,5.57504287,3280.4,3279.3,2.3827]
[1722374010075,1.91922562,3279.7,3279.3,2.3827]
[1722374010277,1.59896502,3279.4,3279.3,2.44368149]
[1722374010571,1.59896502,3279.4,3279.3,2.96614807]
[1722374011087,1.59896502,3279.4,3279.3,6.07656189]
[1722374011427,1.59896502,3279.5,3279.4,3.04933]
[1722374011569,2.3967,3280.4,3279.4,3.98995773]
[1722374011570,1.59896502,3279.6,3279.4,3.98995773]
[1722374011809,1.59896502,3279.6,3279.4,4.05093494]
[1722374012657,1.59896502,3279.7,3279.4,4.05093494]
[1722374012872,1.59896502,3279.7,3279.5,0.40005206]
[1722374013624,1.59896502,3279.7,3279.6,0.06097637]
[1722374014628,1.59896502,3279.8,3279.6,0.06097637]
[1722374014829,0.04022304,3279.7,3279.6,0.06097637]
[1722374015030,1.59896502,3279.8,3279.6,0.50607499]
[1722374015350,0.03922304,3279.7,3279.6,0.50607499]
[1722374015658,1.59896502,3279.8,3279.6,0.50607499]
[1722374016264,1.31644399,3279.7,3279.6,0.50607499]
[1722374016469,1.59652211,3279.8,3279.6,0.44509862]
[1722374016630,1.59652211,3279.8,3279.5,0.46102909]
[1722374016631,1.31623569,3279.7,3279.5,0.46102909]
[1722374017648,1.31623569,3279.7,3279.5,3.51026909]
[1722374018270,1.31623569,3279.7,3279.6,2.475]
[1722374019545,1.27701265,3279.7,3279.6,2.475]
[1722374019891,1.31623569,3279.7,3279.6,3.07352591]
[1722374020051,1.31623569,3279.7,3279.6,2.475]
[1722374021465,0.03922304,3279.7,3279.6,2.475]
[1722374021790,1.27701265,3279.8,3279.6,2.475]
[1722374022002,0.03934924,3279.7,3279.6,2.475]
[1722374022150,0.03934924,3279.7,3279.6,3.07352587]
[1722374022351,1.27701265,3279.8,3279.6,3.13450219]
[1722374022595,0.03934924,3279.7,3279.6,3.13450219]
[1722374022954,1.27701265,3279.8,3279.6,3.13450219]
[1722374023199,0.03934924,3279.7,3279.6,3.13450219]
[1722374023441,1.27701265,3279.8,3279.6,3.13450219]
[1722374023605,1.27701265,3279.8,3279.7,0.65837843]
[1722374024546,1.27701265,3279.8,3279.7,3.70742843]
[1722374024719,1.27701265,3279.8,3279.7,3.7684008]
[1722374024924,1.27701265,3279.9,3279.7,3.7684008]
[1722374025118,1.27701265,3280.0,3279.8,0.6853116]
[1722374025419,1.276933,3280.1,3280.0,8.46416]
[1722374025678,1.276933,3280.3,3280.2,3.04859]
[1722374025969,1.276933,3280.5,3280.2,3.894987]
[1722374026177,1.276933,3280.6,3280.2,3.894987]
[1722374026316,1.276933,3280.6,3280.3,1.073]
[1722374026523,1.276933,3280.8,3280.5,3.4396]
[1722374026718,1.276933,3280.8,3280.5,2.3666]
[1722374027233,1.59549275,3280.9,3280.5,2.3666]
[1722374027234,1.276933,3280.9,3280.5,6.48786]
[1722374027461,1.276933,3281.0,3280.6,1.00329927]
[1722374027972,1.276933,3280.9,3280.6,1.00329927]
[1722374028534,1.276933,3281.0,3280.6,1.00329927]
[1722374029057,1.27475309,3281.0,3280.6,1.00329927]
[1722374029241,1.27475309,3281.0,3280.7,0.74911493]
[1722374029670,1.27475309,3281.1,3280.7,0.74911493]
[1722374030661,1.27475309,3281.2,3280.7,0.74911493]
[1722374030978,0.03513075,3281.0,3280.7,0.74911493]
[1722374031133,0.03517589,3281.1,3280.7,0.74911493]
[1722374031333,0.0350856,3280.9,3280.7,0.74911493]
[1722374031535,1.27475309,3281.2,3280.7,0.74911493]
[1722374031748,0.03504044,3280.8,3280.7,0.74911493]
[1722374032246,3.0,3281.3,3280.7,0.74911493]
[1722374032460,0.03504044,3280.8,3280.5,3.4396]
[1722374032649,0.03504044,3280.8,3280.5,6.48786]
[1722374032855,3.0,3281.3,3280.5,6.48786]
[1722374032856,1.2736846,3281.3,3280.5,6.48786]
[1722374033173,1.2736846,3281.4,3280.8,3.04802]
[1722374033384,4.2736846,3281.5,3280.9,0.412102]
[1722374033539,4.2736846,3281.5,3280.8,3.04798]
[1722374033880,1.2736846,3281.4,3280.6,6.8]
[1722374034766,1.2736846,3281.4,3280.6,41.8]
[1722374034971,1.073,3281.3,3280.7,3.04901288]
[1722374035185,1.073,3281.3,3280.6,6.8]
[1722374036180,2.3466846,3281.3,3280.6,6.8]
[1722374038385,2.3466846,3281.3,3280.7,0.2]
[1722374039085,1.073,3281.3,3280.7,0.2]
[1722374039295,2.3466846,3281.3,3280.7,0.2]
[1722374039790,1.073,3281.3,3280.7,0.2]
[1722374039945,2.3466846,3281.3,3280.7,0.2]
[1722374040140,1.2736846,3281.3,3280.7,1.13666]
[1722374040340,2.6635196,3281.5,3280.7,1.13666]
[1722374040341,1.2736846,3281.4,3280.7,1.13666]
[1722374040583,1.2736846,3281.4,3280.7,0.2]
[1722374041271,1.073,3281.5,3280.7,0.2]
[1722374041443,1.27252842,3281.4,3280.7,0.2]
[1722374042519,1.27252842,3281.4,3280.7,0.4]
[1722374043713,1.27252842,3281.3,3280.7,0.4]
[1722374045676,0.03283246,3281.2,3280.7,0.4]
[1722374045887,0.03283246,3281.2,3280.7,1.46396]
[1722374046599,0.03283246,3281.2,3280.7,1.66396]
[1722374047480,1.30536088,3281.2,3280.7,1.66396]
[1722374049467,1.27252842,3281.1,3280.7,1.66396]
[1722374049671,1.3043724,3281.1,3280.7,1.66396]
[1722374050171,1.27252842,3281.0,3280.7,0.6]
[1722374050376,1.27252842,3280.9,3280.7,0.6]
[1722374050671,1.30449643,3280.9,3280.7,0.6]
[1722374051288,0.03196801,3280.9,3280.7,0.6]
[1722374052229,0.03196801,3280.9,3280.8,0.8473]
[1722374052681,1.27252842,3281.0,3280.8,0.8473]
[1722374052845,1.27252842,3281.0,3280.7,0.6]
[1722374053038,0.03198283,3280.9,3280.7,0.6]
[1722374053232,0.03198283,3280.9,3280.8,3.47935613]
[1722374053481,2.28,3281.7,3280.8,6.52738613]
[1722374053789,0.03194905,3280.9,3280.8,6.52738613]
[1722374054074,1.27618307,3281.3,3280.9,3.04794]
[1722374054310,1.27618307,3281.4,3281.0,1.13394933]
[1722374054436,1.27618307,3281.3,3281.0,1.13394933]
[1722374054759,1.27618307,3281.2,3281.0,1.13394933]
[1722374055170,1.27618307,3281.2,3281.0,0.06094933]
[1722374055328,1.27618307,3281.3,3281.0,0.71368726]
[1722374055534,1.27618307,3281.2,3281.0,0.71368726]
[1722374056731,1.27618307,3281.1,3281.0,0.71368726]
[1722374056967,1.27618307,3281.1,3281.0,0.65273793]
[1722374058967,1.27618307,3281.1,3281.0,1.72573793]
[1722374059171,1.27618307,3281.2,3281.0,1.72573793]
[1722374059407,1.27618307,3281.2,3281.1,0.1786689]
[1722374059569,1.59601731,3281.3,3281.1,0.1786689]
[1722374059908,0.03209304,3281.2,3281.1,0.1786689]
[1722374060102,1.59601731,3281.3,3281.1,0.1786689]
[1722374060306,1.59601731,3281.3,3281.0,1.72573793]
[1722374060307,1.59601731,3281.3,3281.2,0.19044068]
[1722374060692,1.62815549,3281.3,3281.2,0.19044068]
[1722374060879,0.03213818,3281.3,3281.2,0.19044068]
[1722374061110,1.59632713,3281.3,3281.2,0.19044068]
[1722374061311,1.62846531,3281.3,3281.2,0.19044068]
[1722374061609,0.03213818,3281.3,3281.2,0.19044068]
[1722374061973,1.59648772,3281.3,3281.2,0.19044068]
[1722374062173,0.03203378,3281.3,3281.2,0.19044068]
[1722374062600,1.91559256,3281.4,3281.2,0.19044068]
[1722374062797,0.03203378,3281.3,3281.0,1.13394947]
[1722374063015,1.59677989,3281.1,3281.0,1.13394947]
[1722374063174,1.59677989,3281.1,3281.0,1.073]
[1722374063522,1.62872338,3281.1,3281.0,1.72573814]
[1722374063673,0.03194349,3281.1,3281.0,1.72573814]
[1722374063873,1.91559256,3281.3,3281.0,1.72573814]
[1722374064316,1.073,3281.8,3281.0,1.72573814]
[1722374064317,1.59705314,3281.1,3281.0,1.72573814]
[1722374064467,0.03198864,3281.2,3281.0,1.72573814]
[1722374064674,1.91678437,3281.4,3281.1,0.2396165]
[1722374064911,0.03205619,3281.3,3281.1,0.06094755]
[1722374065570,1.94884056,3281.3,3281.1,0.06094755]
[1722374065768,1.94884056,3281.3,3281.0,1.13394952]
[1722374066418,1.94930566,3281.3,3281.0,1.13394952]
[1722374066728,0.03205619,3281.3,3281.2,4.12066]
[1722374066892,1.31043401,3281.3,3281.2,7.43614504]
[1722374067091,0.03205619,3281.3,3281.2,7.43614504]
[1722374067328,1.31043401,3281.3,3281.2,7.43614504]
[1722374067477,1.27837782,3281.3,3281.2,7.43614504]
[1722374067791,1.27837782,3281.4,3281.2,7.43614504]
[1722374067975,1.59801445,3281.5,3281.3,4.18295696]
[1722374068375,1.27828336,3281.4,3281.3,4.18295696]
[1722374068811,1.59801445,3281.5,3281.3,4.18295696]
[1722374068988,2.68898675,3282.1,3281.3,4.12201288]
[1722374068989,1.59801445,3281.4,3281.3,4.12201288]
[1722374069194,1.91724947,3281.7,3281.3,3.04901288]
[1722374069420,1.91724947,3281.7,3281.4,0.63035539]
[1722374069577,1.94943693,3281.6,3281.4,0.63035539]
[1722374069885,1.91724947,3281.7,3281.4,0.63035539]
[1722374070601,1.5251957,3282.1,3281.4,0.63035539]
[1722374070602,1.94943693,3281.6,3281.4,0.63035539]
[1722374070920,1.95138442,3281.6,3281.4,0.63035539]
[1722374071122,1.91919696,3281.6,3281.4,0.63035539]
[1722374071539,1.91919696,3281.7,3281.5,0.48118279]
[1722374071708,0.03218746,3281.6,3281.5,2.9491244]
[1722374072040,1.91919696,3281.7,3281.5,2.88818279]
[1722374072240,1.91919696,3281.7,3281.6,0.66269498]
[1722374072402,1.91919696,3281.8,3281.6,3.70993498]
[1722374072601,1.91919696,3281.9,3281.7,1.13393549]
[1722374072818,1.91919696,3281.9,3281.7,1.13393652]
[1722374073148,1.91919696,3281.9,3281.8,0.48439215]
[1722374073800,1.91919696,3281.9,3281.6,0.66269498]
[1722374074007,1.91846282,3281.9,3281.6,0.66269498]
[1722374075916,0.03239339,3281.8,3281.6,0.66269498]
[1722374076340,1.91846282,3282.0,3281.6,0.66269498]
[1722374076549,1.59805256,3281.7,3281.6,0.66269498]
[1722374076710,1.63040082,3281.7,3281.6,0.66269498]
[1722374077050,0.03234826,3281.7,3281.6,0.66269498]
[1722374077423,1.9176681,3281.9,3281.6,0.66269498]
[1722374077621,0.03247505,3281.7,3281.5,3.48]
[1722374077943,1.63037544,3281.6,3281.5,3.48]
[1722374078104,1.59794552,3281.6,3281.5,3.48]
[1722374078310,1.63037544,3281.6,3281.5,3.828]
[1722374078803,1.59794552,3281.6,3281.5,3.828]
[1722374080179,1.59794552,3281.7,3281.5,3.828]
[1722374080490,1.073,3282.4,3281.5,3.828]
[1722374080636,1.59760142,3281.7,3281.6,0.687547]
[1722374081475,1.9171217,3282.0,3281.6,0.687547]
[1722374082144,1.59745274,3281.7,3281.6,0.687547]
[1722374082341,1.9171217,3281.9,3281.6,0.687547]
[1722374082572,1.9171217,3281.9,3281.7,0.4515547]
[1722374082785,1.9171217,3282.0,3281.7,0.4515547]
[1722374082937,1.9171217,3282.0,3281.5,3.828]
[1722374083134,1.59745182,3281.6,3281.5,2.755]
[1722374083468,1.9171217,3281.8,3281.5,0.348]
[1722374083632,1.9171217,3281.8,3281.3,6.8]
[1722374083833,0.03254426,3281.7,3281.3,6.8]
[1722374084033,1.59761232,3281.5,3281.3,6.8]
[1722374084285,1.59761499,3281.5,3281.3,6.8]
[1722374084435,0.03240888,3281.4,3281.3,6.8]
[1722374084768,0.03240888,3281.4,3281.3,7.83712]
[1722374085089,0.03240888,3281.4,3281.3,1.03712]
[1722374085232,0.03240888,3281.4,3281.2,2.4982]
[1722374085575,1.27817365,3281.3,3281.2,2.4982]
[1722374086353,1.31060383,3281.3,3281.2,2.4982]
[1722374086550,0.03236375,3281.3,3281.2,2.4982]
[1722374086875,1.59779268,3281.4,3281.2,2.4982]
[1722374087142,2.4378,3282.1,3281.3,0.35712]
[1722374087292,1.59780506,3281.5,3281.3,0.35712]
[1722374087490,1.59780506,3281.5,3281.3,1.43012]
[1722374087730,1.91736608,3281.8,3281.3,1.43012]
[1722374087731,1.59780506,3281.4,3281.3,1.43012]
[1722374089143,1.59780506,3281.5,3281.3,1.43012]
[1722374089340,1.59780506,3281.5,3281.4,0.697597]
[1722374090446,2.4378,3282.1,3281.4,0.697597]
[1722374090646,1.598022,3281.5,3281.4,0.697597]
[1722374090994,1.62923664,3281.5,3281.4,0.697597]
[1722374091200,1.598022,3281.5,3281.4,0.697597]
[1722374091439,1.9176264,3281.8,3281.4,0.697597]
[1722374091744,1.59826912,3281.5,3281.4,0.697597]
[1722374092442,1.9176264,3281.7,3281.4,0.697597]
[1722374092811,0.03125977,3281.6,3281.4,0.697597]
[1722374093143,1.9176264,3281.8,3281.6,0.2]
[1722374093438,0.03126222,3281.7,3281.6,0.2]
[1722374093817,1.9176264,3281.8,3281.7,2.3245]
[1722374093818,1.91818359,3281.8,3281.7,2.3245]
[1722374094148,1.91818359,3281.9,3281.7,3.01635728]
[1722374094349,0.0305509,3281.8,3281.7,2.3245]
[1722374094546,0.0305509,3281.8,3281.7,3.3975]
[1722374094962,1.91818359,3281.9,3281.7,3.3975]
[1722374095772,0.0305509,3281.8,3281.7,6.44465]
[1722374095925,1.91818359,3282.0,3281.7,7.44121928]
[1722374096125,1.91818359,3282.0,3281.8,0.06093596]
[1722374096460,0.03061843,3281.9,3281.8,3.10802596]
[1722374096820,1.073,3282.7,3281.8,3.10802596]
[1722374097016,1.91846122,3282.1,3281.8,6.15703884]
[1722374097272,1.91846122,3282.1,3282.0,0.2]
[1722374097834,1.94916632,3282.1,3282.0,0.2]
[1722374098273,0.0307051,3282.1,3282.0,0.2]
[1722374098566,2.23820475,3282.3,3282.0,0.2]
[1722374098767,0.03076499,3282.2,3282.0,0.2]
[1722374099066,2.23820475,3282.3,3282.0,0.2]
[1722374099222,0.03091578,3282.1,3282.0,0.2]
[1722374099424,2.23820475,3282.3,3282.0,0.2]
[1722374099623,0.03091578,3282.1,3282.0,0.2]
[1722374100268,1.073,3282.5,3282.0,0.2]
[1722374100466,0.03091578,3282.1,3282.0,0.2]
[1722374100667,2.23880246,3282.3,3282.0,0.2]
[1722374100873,0.03091578,3282.1,3282.0,0.2]
[1722374101039,2.23880246,3282.3,3282.0,0.2]
[1722374101235,2.23880246,3282.2,3282.0,0.4]
[1722374101453,0.03091578,3282.1,3282.0,0.4]
[1722374102214,3.57641578,3282.1,3282.0,0.4]
[1722374102374,3.89487183,3282.1,3282.0,0.4]
[1722374102781,6.89487183,3282.1,3282.0,0.4]
[1722374102993,3.0472,3281.7,3281.6,0.2]
[1722374103156,9.4317,3281.7,3281.6,0.2]
[1722374103496,9.46227119,3281.7,3281.6,0.2]
[1722374103821,9.58997104,3281.7,3281.6,0.2]
[1722374103953,13.05947119,3281.7,3281.6,0.2]
[1722374104566,13.05947119,3281.7,3279.9,2.4534]
[1722374104567,3.0477,3281.2,3279.9,2.4534]
[1722374104902,1.59951875,3280.1,3279.9,3.68364]
[1722374105112,1.59951875,3280.0,3279.8,35.0]
[1722374105251,1.30868197,3280.0,3279.9,1.073]
[1722374105456,1.27903604,3280.0,3279.9,1.073]
[1722374105757,1.27897101,3280.0,3279.9,1.073]
[1722374106304,1.27897101,3280.1,3279.9,1.073]
[1722374106597,1.27897101,3280.1,3280.0,3.04901288]
[1722374107006,1.27897101,3280.1,3279.6,2.4534]
[1722374107007,1.59871376,3280.1,3279.6,2.4534]
[1722374107160,1.27858417,3279.9,3279.6,2.4534]
[1722374107358,0.02929228,3279.8,3279.6,2.4534]
[1722374107574,1.30787645,3279.8,3279.7,0.35264]
[1722374107814,1.27858417,3279.8,3279.4,6.8]
[1722374108028,1.27803318,3279.7,3279.4,6.8]
[1722374108307,0.02928306,3279.7,3279.4,6.8]
[1722374108460,1.30731624,3279.7,3279.5,0.68]
[1722374108658,1.073,3280.2,3279.5,0.68]
[1722374108869,1.27736262,3279.7,3279.5,0.68]
[1722374109282,1.27736262,3279.8,3279.6,0.748]
[1722374110414,1.59670328,3280.0,3279.6,0.748]
[1722374110415,1.27736262,3279.9,3279.6,0.748]
[1722374110923,1.27736262,3279.9,3279.4,6.8]
[1722374110924,1.27736262,3279.7,3279.4,6.8]
[1722374111084,1.27736262,3279.7,3278.8,15.17984]
[1722374111085,1.27736262,3279.7,3278.7,5.4607]
[1722374111293,1.30643875,3279.6,3278.7,5.4607]
[1722374111611,1.27736262,3279.4,3278.8,35.0]
[1722374111810,1.62577941,3279.6,3278.8,35.0]
[1722374111811,1.27736262,3279.3,3278.8,35.0]
[1722374112031,1.27736262,3279.2,3278.8,35.0]
[1722374112262,1.27736262,3279.4,3278.8,3.04901288]
[1722374112407,1.27736262,3279.5,3278.7,5.51068]
[1722374112757,1.59482977,3279.6,3278.7,5.51068]
[1722374112758,0.03062483,3279.4,3278.9,3.04975]
[1722374112933,1.27736262,3279.7,3279.1,3.04961]
[1722374113118,1.27736262,3279.8,3279.2,0.31105979]
[1722374113319,3.0,3279.8,3279.2,0.31105979]
[1722374113647,1.30319179,3279.7,3278.7,40.51065]
[1722374113857,1.30319179,3279.7,3278.7,40.51061]
[1722374114007,1.27424282,3279.7,3278.8,3.04989]
[1722374114725,0.02892622,3279.6,3278.8,3.04989]
[1722374115035,4.27424282,3279.8,3278.9,3.04901288]
[1722374115340,0.0289714,3279.7,3278.9,3.04901288]
[1722374115550,2.3446,3279.7,3278.9,3.04901288]
[1722374115709,0.02909044,3279.6,3278.7,37.4607]
[1722374116144,1.30333326,3279.6,3278.7,37.4607]
[1722374116603,1.30333326,3279.6,3278.7,35.0]
[1722374116804,0.02909044,3279.6,3278.4,9.8502]
[1722374117046,0.02909044,3279.6,3278.5,1.52858984]
[1722374117274,0.02909044,3279.6,3278.6,35.0]
[1722374119354,0.02909044,3279.6,3278.4,6.8]
[1722374119561,0.34747397,3279.6,3278.4,6.8]
[1722374119881,3.34747397,3279.6,3278.4,6.8]
[1722374120881,2.4387,3279.4,3278.4,6.8]
[1722374121236,0.03058991,3279.3,3278.4,6.8]
[1722374122337,0.03058991,3279.3,3278.5,0.68972984]
[1722374123058,0.03058991,3279.3,3278.6,0.06099758]
[1722374123450,2.4387,3279.4,3278.6,0.06099758]
[1722374123777,0.03058991,3279.3,3278.5,0.68972984]
[1722374123936,2.4387,3279.4,3278.5,0.68972984]
[1722374124144,0.03058991,3279.3,3278.4,9.2618]
[1722374124985,0.03058991,3279.3,3278.4,6.8]
[1722374126717,0.03058991,3279.3,3278.5,0.06099531]
[1722374126841,0.03058991,3279.3,3278.6,3.04901288]
[1722374127046,2.4387,3279.4,3278.6,6.09908288]
[1722374127286,2.4387,3279.4,3278.7,3.11095388]
[1722374127446,3.0,3279.5,3278.8,0.06099007]
[1722374127648,0.31838353,3279.6,3278.8,0.06099007]
[1722374127902,0.0291879,3279.4,3278.9,3.04979]
[1722374128049,0.02929617,3279.5,3279.0,0.06098746]
[1722374128248,0.02919933,3279.3,3279.0,0.06098746]
[1722374128472,0.02929208,3279.4,3279.0,0.06098746]
[1722374128673,2.261,3279.8,3279.0,0.06098746]
[1722374129023,0.02943733,3279.7,3279.0,0.06098746]
[1722374129529,2.3281,3280.1,3279.2,2.4586]
[1722374129674,2.3281,3280.1,3279.3,0.06098165]
[1722374129880,0.02946207,3279.9,3279.3,0.06098165]
[1722374130427,0.02946207,3279.9,3279.0,0.39365128]
[1722374130779,0.02946207,3279.9,3279.1,0.06098174]
[1722374130978,0.02946207,3279.9,3279.2,0.3504283]
[1722374131320,0.02946207,3279.9,3279.3,0.0609817]
[1722374131519,0.02946207,3279.9,3279.5,0.2]
[1722374132274,0.02949785,3279.8,3279.5,0.2]
[1722374132580,0.05314367,3280.6,3279.5,0.2]
[1722374132581,2.2769,3280.4,3279.5,0.2]
[1722374132781,2.4457,3280.8,3279.6,0.32622662]
[1722374133025,2.4457,3280.8,3280.0,3.04872]
[1722374133331,2.8978957,3281.2,3280.2,3.04854]
[1722374133533,2.8978957,3281.2,3280.3,0.06096045]
[1722374133829,2.8978957,3281.2,3280.1,2.2599]
[1722374134041,2.8978957,3281.2,3280.0,6.8]
[1722374134621,3.0,3281.1,3280.0,6.8]
[1722374137423,3.0,3281.1,3280.0,41.8]
[1722374137609,3.0,3281.1,3280.0,44.84869]
[1722374137813,3.21619934,3281.2,3280.1,0.06096743]
[1722374138137,0.4521957,3281.2,3280.4,3.04839]
[1722374138444,0.4521957,3281.2,3280.5,0.06095796]
[1722374138670,0.4521957,3281.2,3280.5,3.10921796]
[1722374138816,0.4521957,3281.2,3280.6,0.58518813]
[1722374139160,2.3056,3281.9,3280.7,0.06095426]
[1722374139460,0.0311075,3281.8,3280.7,3.10903426]
[1722374139657,0.0311075,3281.8,3280.7,3.72475169]
[1722374140331,0.0311075,3281.8,3280.7,0.61571743]
[1722374140531,4.30284342,3281.8,3280.5,3.04825]
[1722374140756,4.30284342,3281.8,3280.4,5.41073]
[1722374141060,1.27173592,3281.6,3280.3,6.8]
[1722374141358,0.03118837,3281.5,3280.4,3.04839]
[1722374141668,0.03118837,3281.5,3280.5,0.984839]
[1722374144063,0.03118837,3281.5,3280.5,4.033139]
[1722374144389,0.03118837,3281.5,3280.8,3.04803]
[1722374144559,0.03118837,3281.5,3280.9,0.06095215]
[1722374144884,0.03118837,3281.5,3280.9,3.41978836]
[1722374145189,0.03118837,3281.5,3281.0,3.10878904]
[1722374145391,1.27173592,3281.9,3281.0,0.06094904]
[1722374145540,0.03115371,3281.8,3281.0,3.04783]
[1722374145740,0.03115371,3281.8,3281.1,0.06094588]
[1722374146278,3.03115371,3281.8,3281.1,0.06094588]
[1722374146487,0.03115371,3281.8,3281.1,0.06094588]
[1722374146643,0.03115371,3281.8,3281.3,3.04756]
[1722374146847,3.63603592,3282.1,3281.4,0.06094124]
[1722374147074,0.03099823,3281.7,3281.4,0.06094124]
[1722374147406,0.03094616,3281.6,3281.5,0.31085012]
[1722374147695,2.3643,3282.1,3281.4,0.06094124]
[1722374147843,0.03094616,3281.6,3281.4,0.60518836]
[1722374148040,5.3643,3282.1,3281.4,0.06094124]
[1722374148297,0.03089408,3281.5,3281.4,0.06094124]
[1722374148440,5.3643,3282.1,3281.4,0.06094124]
[1722374148640,0.03089408,3281.5,3281.4,0.06094124]
[1722374148846,5.3643,3282.1,3281.2,5.38153]
[1722374149058,0.03089408,3281.5,3280.8,12.30627]
[1722374149260,1.27173592,3281.9,3280.8,9.2583]
[1722374149496,0.02885505,3281.4,3280.8,9.2583]
[1722374149657,1.27173592,3281.9,3280.8,2.4583]
[1722374149861,0.0288067,3281.3,3280.8,2.4583]
[1722374150079,1.27173592,3281.8,3280.8,3.00770175]
[1722374150277,1.27173592,3281.9,3280.8,3.00770175]
[1722374150452,0.03123089,3281.7,3280.8,0.550643]
[1722374150651,0.03123089,3281.7,3280.5,10.833099]
[1722374150652,3.62283592,3281.7,3280.5,7.784839]
[1722374150886,0.02910881,3281.6,3280.5,10.833079]
[1722374151189,3.62283592,3281.7,3280.5,10.833079]
[1722374151395,3.62283592,3281.7,3280.6,3.04815]
[1722374151546,2.3511,3281.7,3280.7,3.04812]
[1722374151885,2.3511,3281.7,3280.8,0.67058053]
[1722374152186,2.3511,3281.7,3280.8,0.06095353]
[1722374154393,3.0,3281.8,3281.0,3.04779]
[1722374154687,3.0,3281.9,3281.1,0.06094758]
[1722374154913,5.287,3282.0,3281.1,3.72433634]
[1722374155078,2.287,3282.0,3281.3,3.04757]
[1722374155807,2.3034,3282.0,3280.7,3.04812]
[1722374156093,1.32485566,3281.9,3280.8,0.53367614]